Cogmind - Beta 9.4 @@@ ROGUE MODE // 2020.01.18 @ 14:13:02 Player: derk Result: Destroyed self with Grenade Launcher Performance ------------- Evolutions (0) 0 Regions Visited (2) 400 Robots Destroyed (25) 125 Value Destroyed (546) 546 Prototype IDs (2) 40 Alien Tech Used (0) 0 Bonus (0) 0 TOTAL SCORE: 1111 Bonus ------- None Cogmind --------- Core Integrity 0/250 Matter 175/300 Energy 100/100 System Corruption 0% Temperature Cool (151) Movement Walking (150) Ox1 Location -10/Mines Parts ------- > --- POWER (1) -------- (None) > --- PROPULSION (2) --- Improved Aluminum Leg Improved Aluminum Leg > --- UTILITY (2) ------ High-capacity Storage Unit Light Armor Plating > --- WEAPON (2) ------- Grenade Launcher > --- INVENTORY (12) --- Improved Aluminum Leg Wheel Wheel Heat Sink Cooling System Large Storage Unit Large Storage Unit High-capacity Matter Pod (105) Structural Scanner Sensor Array Improved Signal Interpreter Improved Signal Interpreter Peak State ------------ > --- POWER ------------ Light Ion Engine > --- PROPULSION ------- Improved Aluminum Leg Improved Aluminum Leg > --- UTILITY ---------- Medium Storage Unit High-capacity Storage Unit > --- WEAPON ----------- Heavy Assault Rifle Heavy Assault Rifle > --- INVENTORY -------- Ion Engine Improved Aluminum Leg Improved Aluminum Leg Wheel Wheel Wheel Wheel Heat Sink Cooling System High-capacity Matter Pod Improved Signal Interpreter Improved Signal Interpreter Light Armor Plating EM Pulse Gun Datajack [Rating: 13] Favorites ----------- Power Ion Engine Engine Ion Engine Propulsion Wheel Leg Improved Aluminum Leg Wheel Wheel Utility High-capacity Storage Unit Storage High-capacity Storage Unit Protection Light Armor Plating Weapon Heavy Assault Rifle Energy Gun EM Pulse Gun Ballistic Gun Heavy Assault Rifle Launcher Grenade Launcher Special Weapon Mining Laser Build | -11 -10 -10 ------- Run | Scr Mat Min Slots Evolved . | . . . Power . | . . . Propulsion . | . . . Utility . | . . . Weapon . | . . . Parts Attached 27 | 7 13 7 Power 2 | 1 1 . Engine 2 | 1 1 . Core . | . . . Reactor . | . . . Propulsion 8 | 2 4 2 Treads . | . . . Leg 4 | . 2 2 Wheel 4 | 2 2 . Hover . | . . . Flight . | . . . Utility 7 | 1 5 1 Device . | . . . Storage 5 | 1 4 . Processor . | . . . Hackware . | . . . Protection 2 | . 1 1 Artifact . | . . . Weapon 10 | 3 3 4 Energy Gun 3 | 2 1 . Energy Cannon . | . . . Ballistic Gun 4 | 1 2 1 Ballistic Cannon . | . . . Launcher 1 | . . 1 Special Weapon 2 | . . 2 Impact Weapon . | . . . Slashing Weapon . | . . . Piercing Weapon . | . . . Special Melee Weapon . | . . . Unidentified Prototypes . | . . . Parts Lost 6 | . 2 4 Power 2 | . 1 1 Propulsion 1 | . . 1 Utility . | . . . Weapon 3 | . 1 2 Highest Loss Streak 3 | . 1 3 Average Slot Usage (%) 98 | . 99 97 Engine 13 | . 13 12 Leg 5 | . 5 5 Wheel 22 | . 23 21 Storage 25 | . 25 25 Protection 1 | . 1 2 Energy Gun 2 | . 3 . Ballistic Gun 23 | . 24 21 Special Weapon 1 | . . 5 Naked Turns . | . . . Heaviest Build 59 | 10 59 59 Greatest Support 26 | 20 26 26 Greatest Overweight (x) 5 | 1 2 5 Average Overweight (x) 1 | . 1 2 Largest Inventory Capacity 18 | 6 18 18 Average Capacity 15 | 5 15 16 Most Carried 18 | 4 18 18 Average Carried 14 | 2 14 16 Final Capacity 18 | 6 18 12 Final Carried 18 | 4 18 12 Class Distribution -------------------- 100% | Mutant Dominant Class ---------------- Mutant | -10/Materials Mutant | -10/Mines Resources | -11 -10 -10 ----------- Run | Scr Mat Min Matter Collected 836 | 270 527 39 Remotely . | . . . Salvage Created 740 | 70 590 80 Parts 40 | 1 31 8 Haulers Intercepted 2 | . 2 . Recyclers Shooed . | . . . Parts Field Recycled . | . . . Retrieved Matter . | . . . Parts Self-Destructed . | . . . Prevented . | . . . Kills | -11 -10 -10 ------- Run | Scr Mat Min Combat Hostiles Destroyed 18 | . 14 4 Guns 15 | . 14 1 Cannons 1 | . . 1 AOE 2 | . . 2 Classes Destroyed 7 | 1 5 1 Tunneler 1 | . . 1 Hauler 2 | . 2 . Recycler 1 | 1 . . Operator 1 | . 1 . Watcher 2 | . 2 . Swarmer 6 | . 6 . Grunt 12 | . 8 4 Best Kill Streak 4 | 1 4 2 Combat Bots Only 4 | . 4 2 Max Kills in Single Turn 2 | 1 2 1 Gunslinging . | . . . Exploded 1 | . . 1 Melee . | . . . Uniques/NPCs Destroyed . | . . . Combat | -11 -10 -10 -------- Run | Scr Mat Min Damage Taken 1140 | . 613 527 Core 258 | . 121 137 Absorbed by Shields . | . . . Core Remaining (%) 100 | 100 . . Volleys Fired 88 | 2 62 24 Largest 2 | 2 2 2 Hottest 123 | 80 63 123 Shots Fired 165 | 4 124 37 Gun 146 | 4 124 18 Cannon . | . . . Launcher 5 | . . 5 Special 14 | . . 14 Kinetic 128 | . 110 18 Thermal 25 | 2 9 14 Explosive 5 | . . 5 Electromagnetic 7 | 2 5 . Robot Hit Streak 20 | 4 20 4 Robot Miss Streak 4 | . 4 2 Penetration Max . | . . . Secondary Targets . | . . . Shots Hit Robots 94 | 4 81 9 Core Hits 40 | 2 29 9 Critical Hits . | . . . Critical Kills . | . . . Critical Parts Destroyed . | . . . Melee Attacks . | . . . Impact . | . . . Slashing . | . . . Piercing . | . . . Sneak Attacks . | . . . Combat Hostiles . | . . . Follow-up Attacks . | . . . Damage Inflicted 1530 | 46 1075 409 Guns 1237 | 46 1075 116 Cannons . | . . . Explosions 221 | . . 221 Melee . | . . . Ramming . | . . . Kinetic 1026 | . 910 116 Thermal 193 | 21 100 72 Explosive 221 | . . 221 Electromagnetic 90 | 25 65 . Impact . | . . . Slashing . | . . . Piercing . | . . . Highest Corruption . | . . . Average Corruption . | . . . Corruption Purged . | . . . Overload Shots . | . . . Overflow Damage . | . . . Projectiles . | . . . Explosions . | . . . Melee . | . . . Knockbacks . | . . . Impact . | . . . Kinetic . | . . . Secondary . | . . . Self-Inflicted Damage 40 | . . 40 Shots 1 | . . 1 Rammed . | . . . Targets Rammed . | . . . Kicked . | . . . Crushed . | . . . Highest Temperature 211 | 36 169 211 Average Temperature 64 | 20 50 78 Received Heat Transfer 510 | . 246 264 Siege Activations . | . . . Robots Corrupted . | . . . Combat Hostiles . | . . . Parts Fried 1 | . 1 . Impact Corruptions . | . . . Robots Melted . | . . . Combat Hostiles . | . . . Parts Melted 1 | . 1 . Heat Transferred 425 | 50 225 150 Parts Sabotaged . | . . . Parts Stolen . | . . . Parts Stripped . | . . . Power Chain Reactions . | . . . Missiles Intercepted . | . . . Alert | -11 -10 -10 ------- Run | Scr Mat Min Peak Influence 249 | 5 249 74 Average Influence 79 | 1 91 44 Maximum Alert Level 1 | . 1 . Low Security (%) 99 | 100 99 100 Level 1 . | . . . Level 2 . | . . . Level 3 . | . . . Level 4 . | . . . Level 5 . | . . . High Security . | . . . Max Security . | . . . Squads Dispatched 3 | . 3 . Investigation 1 | . 1 . Extermination . | . . . Reinforcement 2 | . 2 . Assault . | . . . Garrison . | . . . Intercept . | . . . Construction Impeded . | . . . Haulers Reinforced . | . . . Stealth | -11 -10 -10 --------- Run | Scr Mat Min Distress Signals 1 | . 1 . Communications Jammed . | . . . Distress Signals . | . . . Times Spotted 33 | . 27 6 Peak Tracking Total 3 | . 3 3 Tactical Retreats 2 | . 2 . Traps | -11 -10 -10 ------- Run | Scr Mat Min Traps Triggered 1 | . 1 . Indirectly . | . . . Trap Hack Attempts . | . . . Triggered . | . . . Disarmed . | . . . Reprogrammed . | . . . Reused . | . . . Traps Extracted . | . . . Installed . | . . . Triggered . | . . . Machines | -11 -10 -10 ---------- Run | Scr Mat Min Machines Disabled . | . . . Max in Single Turn . | . . . Machines Sabotaged . | . . . Garrisons Compromised . | . . . Overloaded Fab Kills . | . . . Fab Network Shutdowns . | . . . Hacking | -11 -10 -10 --------- Run | Scr Mat Min Machines Accessed 4 | . 4 . Terminals 4 | . 4 . Fabricators . | . . . Repair Stations . | . . . Recycling Units . | . . . Scanalyzers . | . . . Garrison Access . | . . . Total Hacks 10 | . 10 . Successful 3 | . 3 . Failed 7 | . 7 . Catastrophic 1 | . 1 . Database Lockouts . | . . . Manual 1 | . 1 . Terminals 10 | . 10 . Fabricators . | . . . Repair Stations . | . . . Recycling Units . | . . . Scanalyzers . | . . . Garrison Access . | . . . Terminal Hacks 3 | . 3 . Prototype ID Bank 1 | . 1 . Locate Traps 1 | . 1 . Zone Layout 1 | . 1 . Fabricator Hacks . | . . . Repair Station Hacks . | . . . Recycling Unit Hacks . | . . . Scanalyzer . | . . . Garrison Access Hacks . | . . . Unauthorized Hacks . | . . . Terminals . | . . . Fabricators . | . . . Repair Stations . | . . . Recycling Units . | . . . Scanalyzers . | . . . Garrison Access . | . . . Data Cores Recovered . | . . . Used . | . . . Hacking Detections 4 | . 4 . Full Trace Events . | . . . Feedback Events . | . . . Feedback Blocked . | . . . Robot Schematics Acquired . | . . . Robots Built . | . . . Matter . | . . . Time . | . . . Total Robot Build Rating . | . . . Part Schematics Acquired . | . . . Parts Built . | . . . Matter . | . . . Time . | . . . Total Part Build Rating . | . . . Parts Repaired . | . . . Time . | . . . Parts Recycled . | . . . Recycled Matter . | . . . Retrieved Matter . | . . . Retrieved Components . | . . . Parts Scanalyzed . | . . . Part Schematics Acquired . | . . . Parts Damaged . | . . . Bothacking | -11 -10 -10 ------------ Run | Scr Mat Min Used RIF Installer . | . . . Robots Hacked . | . . . Non-combat . | . . . Combat . | . . . Robot Hacks Applied . | . . . Relay Couplers Released . | . . . Robots Rewired . | . . . Allies Hacked . | . . . Hacks Repelled . | . . . Allies | -11 -10 -10 -------- Run | Scr Mat Min Total Allies . | . . . Largest Group . | . . . Highest-Rated Group . | . . . Highest-Rated Ally . | . . . Total Orders . | . . . Ally Attacks . | . . . Total Damage . | . . . Kills . | . . . Allies Corrupted . | . . . Allies Melted . | . . . Intel | -11 -10 -10 ------- Run | Scr Mat Min Robot Analysis Total . | . . . Derelict Logs Recovered . | . . . Drone Launches . | . . . Drone Recoveries . | . . . Exploration | -11 -10 -10 ------------- Run | Scr Mat Min Turns Passed 1257 | 58 977 222 Spaces Moved 834 | 42 679 113 Core 3 | 3 . . Treads . | . . . Legs 67 | . 66 1 Wheels 764 | 39 613 112 Hover . | . . . Flight . | . . . Fastest Speed 50 | 50 80 100 Average Speed 100 | 80 101 102 Slowest Speed 150 | 100 150 150 Overloaded Moves . | . . . Propulsion Burnouts . | . . . Robots Hopped . | . . . Cave-ins Triggered . | . . . Exploration Rate (%) 40 | 3 89 28 Regions Visited 2 Branch Regions 1 Pre-discovered Areas . | . . . Known Exits Taken . | . . . Unknown Exits Taken 2 | 1 1 . Scrap Searched . | . . . Spaces Dug 10 | . . 10 Terrain Destroyed 24 | . . 24 Melee . | . . . Projectile 4 | . . 4 AOE 20 | . . 20 Actions | -11 -10 -10 --------- Run | Scr Mat Min Total 1058 | 58 847 153 Wait 75 | 4 62 9 Move 832 | 41 678 113 Hop . | . . . Pick Up 26 | 4 22 . Fast Attach 9 | 6 2 1 Attach 3 | . 2 1 Detach . | . . . Swap 15 | 1 9 5 Drop 10 | . 10 . Fire 88 | 2 62 24 Melee . | . . . Ram . | . . . Kick . | . . . Crush . | . . . Escape Stasis . | . . . Rewire . | . . . Trap . | . . . Miscellaneous . | . . . Route ------- -11/Scrapyard -10/Materials (discovered 4 exits: [*Mat x2] / [*Min x2]) -10/Mines History --------- Turn | Location | Event 24 | -11/Scrapyard | Discovered new exit (range 16) 59 | -11/Scrapyard | Entered Materials 187 | -10/Materials | Discovered new exit (range 6) 302 | -10/Materials | Build established: Mutant 364 | -10/Materials | Discovered new exit (range 9) 665 | -10/Materials | Discovered new exit (range 14) 980 | -10/Materials | Discovered new exit (range 11) 1036 | -10/Materials | Entered Mines 1132 | -10/Mines | Excavation squad dispatched 1132 | -10/Mines | A large section of the Mines collapsed 1188 | -10/Mines | Core integrity fell below 50% 1255 | -10/Mines | Core integrity fell below 20% 1258 | -10/Mines | Destroyed self with Grenade Launcher Last Messages --------------- 01191_ Wheel destroyed. 01191_ T-07 Excavator is excavating. 01191_ T-07 Excavator destroyed. 01194_ T-07 Excavator is excavating. 01194_ G-34 Mercenary destroyed. 01195_ Acquired 39 matter. 01198_ T-07 Excavator is excavating. 01209_ The unstable cave ceiling collapses. 01209_ Aluminum Leg crushed. 01212_ T-07 Excavator is excavating. 01215_ G-34 Mercenary destroyed. 01216_ T-07 Excavator is excavating. 01233_ G-34 Mercenary destroyed. 01238_ Ion Engine destroyed. 01242_ Hvy. Assault Rifle destroyed. 01247_ Acquired Grenade Launcher. 01254_ Mining Laser destroyed. 01254_ G-34 Mercenary destroyed. 01255_ The unstable cave ceiling collapses. 01258_ G-34 Mercenary destroyed. Map ----- +----------------------------------------------------+ | | | | | | | | | | | | | | | | | | | | | | | ?????????????????????????????????????????? | | ?????????????????????????????????????????? | | ?????????????????????????????????????????? | | ?????????????????????????????????????????? | | ?????????????????????#???????????????????? | | ?????????????######## ???????????????????? | | ???????????### # ????????????????????? | | ????????#### ????????????????????? | | ????????# ; #????????????????????? | | ????????# g ?????????????????????? | | ????????# # = ?????????????????????? | | ??????????? [!#?????????????????????? | | ????????????? = #?????????????????????? | | ??????????????# *% #?????????????????????? | | ???????????????#%@#??????????????????????? | | ???????????????## #??????????????????????? | | ????????????????###??????????????????????? | | ????????????????# #??????????????????????? | | ????????????????# #??????????????????????? | | ????????????????# #??????????????????????? | | ????????????????# #??????????????????????? | | ????????????????# #??????????????????????? | | ???????########## #### #????????????????? | | ???????# #????????????????? | | ???????# ############# #????????????????? | | ???###?# #???????????????????????????????? | | ??## ## #???????????????????????????????? | | ?## ##??????????????????????????????? | | ?# #####??????????????????????????? | | ?# ##?????????????????????????? | | ?## ##????????????????????????? | | ??## #????????????????????????? | | ??## #?????? #???????????????? | | ??# ##?????? #???????????????? | | ??# ##??????? #???????????????? | | ??## ##???????? #???????????????? | | ???# ####???????"" #???????????????? | | ???## ####??????????"" ??#????????????? | | ????# ##?????????????"" ?? #????????????? | +----------------------------------------------------+ Best States ------------- Heat Dissipation 25 Energy Generation 10 Energy Capacity 250 Matter Stores 300 Matter Capacity 300 Sight Range 16 Terrain Scan Density 10 Armor Coverage 150 Evasion (%) 44 Item Schematics ----------------- None Robot Schematics ------------------ None Fabricated ------------ Nothing Alien Tech Used ----------------- None Achievements -------------- None Challenges ------------ None Game ------ Seed DamperInsulatedAxe Manual? 0 Play Time 00:16:24 Cumulative 38.5 hours Start 2020.01.18 @ 13:55:39 End 2020.01.18 @ 14:13:02 Sessions 1 Manual Loads 0 Difficulty Rogue Special Mode None Game No. 19 Rogue 19 Adventurer 0 Explorer 0 Win Type - Total 0 Types 0/0/0/0/0/0/0 Lore% 20 Gallery% 46 Achievement% 36 Wizard Run 0 Options --------- ASCII 0 Keyboard 0 Movement Numpad Keybinds 0 Fullscreen 1 Font 18/SmallcapsGlow Map View 76x50 Tactical HUD 1 Map Filters NONE Filters NONE Steam 1 RUN: 959f8473-ffa1-467d-ba6f-54295e7713d5